{"text_format":"3","workbook":"xlsx","n_sheets":6,"sheets":["Kamuoliai","Batai","Krepšiai","Pirštinės","Kitos_Prekės","Boulingams"],"not_rendered":{"defined_names":5},"read":"whole","date_system":"1900"}

{"sheet":"Kamuoliai","index":0,"n_rows":76,"n_cols":13,"rows_kept":76}
[]
["Nr.","Prekė","Gamintojas","Pavadinimas","Svoris Lbs","Spare/hook","Paviršius","Šerdis","Data","Kaina eur.","Kiekis","Parduota","Likutis"]
[1,"Kamuolys","Brunswick","T Zone pink",15,"Spare",{"$nulls":3},49,1,null,{"$f":"+K3-L3","v":1}]
[2,"Kamuolys","Brunswick","Viz A  Ball Shrek",12,"Spare",{"$nulls":3},69,1,null,1]
[3,"Kamuolys","C300","Blur s",16,"Hook","P","S",2014,49,1,null,1]
[4,"Kamuolys","C300","Maximum Chaos",15,"Hook","S","S",2019,79,1,null,1]
[5,"Kamuolys","Ebonite","Angry Bird",8,"Spare",{"$nulls":3},69,1,null,1]
[6,"Kamuolys","Ebonite","Angry Bird",10,"Spare",{"$nulls":3},69,6,null,6]
[7,"Kamuolys","Ebonite","Angry Bird",11,"Spare",{"$nulls":3},69,2,null,2]
[8,"Kamuolys","Ebonite","Angry Bird",12,"Spare",{"$nulls":3},69,6,null,6]
[9,"Kamuolys","Ebonite","Angry Bird",14,"Spare",{"$nulls":3},69,1,null,1]
[10,"Kamuolys","Ebonite","Garfiel Odie",12,"Spare",{"$nulls":3},59,2,null,2]
[11,"Kamuolys","Ebonite","Honor",15,"Hook","H","A",2014,109,2,null,2]
[12,"Kamuolys","Ebonite","Maxim",6,"Spare",{"$nulls":3},69,2,null,2]
[13,"Kamuolys","Ebonite","Maxim",8,"Spare",{"$nulls":3},69,1,null,1]
[14,"Kamuolys","Ebonite","Maxim",10,"Spare",{"$nulls":3},69,4,null,4]
[15,"Kamuolys","Ebonite","Warrior",15,"Hook","P","A",2015,99,1,null,1]
[16,"Kamuolys","Global 900","Fun ball",15,"Hook",{"$nulls":3},69,2,null,{"$f":"+K18-L18","v":2}]
[17,"Kamuolys","Global 900","Zen U",15,"Hook","U/S","S",2022,149,2,null,2]
[18,"Kamuolys","Hammer","Burgundy",13,"Hook","S","S",2014,69,1,null,1]
[19,"Kamuolys","Hammer","Burgundy",14,"Hook","S","S",2014,69,1,null,1]
[20,"Kamuolys","Hammer","Diesel Heavy Duty",15,"Hook","H","S",2019,139,1,null,1]
[21,"Kamuolys","Hammer","HammerFlage spare",15,"Spare",{"$nulls":3},69,1,null,1]
[22,"Kamuolys","Hammer","Rebel NBT",15,"Hook","P","S",2016,89,1,null,1]
[23,"Kamuolys","Morich","Awesome Revs",16,"Hook","P","A",2006,89,1,null,1]
[24,"Kamuolys","Motiv","Black Venom",15,"Hook","S","A",2023,189,1,null,1]
[25,"Kamuolys","Motiv","Evoke",15,"Hook","S","A",2024,169,1,null,1]
[26,"Kamuolys","Motiv","Free Style Rush",15,"Hook","P","S",2018,109,1,null,1]
[27,"Kamuolys","Motiv","Iron Forge",15,"Hook","P","S",2021,159,1,null,1]
[28,"Kamuolys","Motiv","Jackal Ambush",14,"Hook","S","A",2023,229,1,null,1]
[29,"Kamuolys","Motiv","Supra Rally",15,"Hook","P","S",2023,119,1,null,1]
[30,"Kamuolys","Motiv","Tank Rampage",15,"Hook","U/R","S",2013,159,1,null,1]
[31,"Kamuolys","Motiv","Top - Thrill",15,"Hook","S","S",2021,139,1,null,1]
[32,"Kamuolys","Motiv","Trident   Odyssey",15,"Hook","S","A",2022,209,1,null,1]
[33,"Kamuolys","Motiv","Venom Exj",15,"Hook","S","S",2024,159,1,null,1]
[34,"Kamuolys","Motiv","Vip Exj Sigma",15,"Hook","P","S",2023,219,2,null,2]
[35,"Kamuolys","Pro Bowl","Polyester",11,"Spare",{"$nulls":3},69,2,null,2]
[36,"Kamuolys","Pro Bowl","Polyester",13,"Spare",{"$nulls":3},69,1,null,1]
[37,"Kamuolys","Pro Bowl","Polyester",14,"Spare",{"$nulls":3},69,1,null,1]
[38,"Kamuolys","Pro Bowl","Polyester",16,"Spare",{"$nulls":3},69,1,null,1]
[39,"Kamuolys","Pro Bowl","Stallion",15,"Hook","U/S","S",2023,109,3,null,3]
[40,"Kamuolys","Prof. Bowling System-Linds","Easy",15,"Hook",{"$nulls":3},69,2,null,2]
[41,"Kamuolys","Prof. Bowling System-Linds","Sniper SG 550",15,"Hook","P","S",2016,79,1,null,1]
[42,"Kamuolys","Prof. Bowling System-Linds","Socker",8,"Spare",{"$nulls":3},69,2,null,2]
[43,"Kamuolys","Prof. Bowling System-Linds","Socker",9,"Spare",{"$nulls":3},69,2,null,2]
[44,"Kamuolys","Prof. Bowling System-Linds","Socker",10,"Spare",{"$nulls":3},69,1,null,1]
[45,"Kamuolys","Prof. Bowling System-Linds","Socker",11,"Spare",{"$nulls":3},69,1,null,1]
[46,"Kamuolys","Roto Grip","Clone",15,"Hook","S","A",2023,109,2,null,2]
[47,"Kamuolys","Roto Grip","Hustle Rip",15,"Hook","S","S",2023,109,1,null,1]
[48,"Kamuolys","Roto grip","Loco",15,"Spare",{"$nulls":3},89,1,null,1]
[49,"Kamuolys","Roto Grip","TNT Infused",15,"Hook","H","S",2023,129,2,null,2]
[50,"Kamuolys","Roto Grip","Unhinged",15,"Hook","P","S",2013,99,1,null,1]
[51,"Kamuolys","Roto Grip","Wreck It",15,"Hook","H","S",2016,109,1,null,1]
[52,"Kamuolys","Roto grip","Wreck It",16,"Hook","H","S",2016,109,1,null,{"$f":"+K54-L54","v":1}]
[53,"Kamuolys","Storm","Absolute Power",15,"Hook","S","A",2023,159,1,null,1]
[54,"Kamuolys","Storm","Big Hit",16,"Hook","P","S",2003,39,1,null,1]
[55,"Kamuolys","Storm","Clear Storm",12,"Spare",{"$nulls":3},79,1,null,1]
[56,"Kamuolys","Storm","Electrify G/O",15,"Hook","P","S",2022,109,1,null,1]
[57,"Kamuolys","Storm","Ice",15,"Spare",null,"S",2024,89,1,null,1]
[58,"Kamuolys","Storm","Infinite Physix",15,"Hook","P","A",2022,159,1,null,1]
[59,"Kamuolys","Storm","IQ Tour 78/U",15,"Hook","U/S","S",2023,149,1,null,1]
[60,"Kamuolys","Storm","Mix",15,"Spare",{"$nulls":3},69,1,null,1]
[61,"Kamuolys","Storm","Nation Clear",13,"Spare",{"$nulls":3},99,1,null,1]
[62,"Kamuolys","Storm","Night Road",15,"Hook","P","S",2022,129,1,null,1]
[63,"Kamuolys","Storm","Nova",15,"Hook","H","A",2022,109,2,null,2]
[64,"Kamuolys","Storm","Phaze IV",15,"Hook","P","S",2022,129,1,null,1]
[65,"Kamuolys","Storm","Phaze V",15,"Hook","P","S",2022,149,1,null,1]
[66,"Kamuolys","Storm","Revenant",15,"Hook","P","S",2023,139,1,null,1]
[67,"Kamuolys","Storm","Soniq",15,"Hook","P","S",2015,109,1,null,1]
[68,"Kamuolys","Storm","Spot On",15,"Spare",{"$nulls":3},79,2,null,2]
[69,"Kamuolys","Storm","Summit Peak",15,"Hook","P","S",2024,159,1,null,1]
[70,"Kamuolys","Storm","Sun",14,"Hook","S","S",2022,129,1,null,1]
[71,"Kamuolys","Storm","Sun",15,"Hook","S","S",2022,129,2,null,2]
[72,"Kamuolys","Storm","Tropical Heat",16,"Hook","P","S",2010,99,1,null,1]
[73,"Kamuolys","Track","Paradox",15,"Hook","H","A",2015,189,1,null,1]
[74,"Kamuolys","Track","Precizion",15,"Hook","P","A",2018,189,1,null,1]

{"sheet":"Batai","index":1,"n_rows":34,"n_cols":13,"rows_kept":34}
[]
[]
[null,"Nr.","Prekė","Gamintojas","Pavadinimas","M/W","Dydis","L/R","Kiekis","Kaina eur.","Komentaras","Parduota","Likutis"]
[null,1,"Batai","Circle","Mens Elite","M",44,"L",1,29,null,null,{"$f":"+I4-L4","v":1}]
[null,2,"Batai","Circle","Mens Elite","M",47,"L",1,29,"1 padas,  1 kulnas",null,1]
[null,3,"Batai","Dexter","Del","M",44,"L/R",1,29,null,null,1]
[null,4,"Batai","Dexter","Emily","W",36,"L/R",3,19,null,null,3]
[null,5,"Batai","Dexter","Emily","W",36.5,"L/R",5,19,null,null,5]
[null,6,"Batai","Dexter","Emily","W",37.5,"L/R",5,19,null,null,5]
[null,9,"Batai","Dexter","Max","M",43.5,"L/R",1,49,null,null,1]
[null,10,"Batai","Dexter","Raquel III","W",36.5,"L/R",1,19,null,null,1]
[null,11,"Batai","Dexter","SST 5","W",40,"R",1,59,null,null,1]
[null,12,"Batai","Dexter","SST 5 LX","M",47,"L",1,59,null,null,1]
[null,13,"Batai","Dexter","SST 6 LX","M",47,"L",1,69,null,null,1]
[null,14,"Batai","Dexter","SST 7","W",40,"R",1,89,null,null,1]
[null,15,"Batai","Dexter","SST 7 SE","M",39,"R",1,89,null,null,1]
[null,16,"Batai","Dexter","SST 8 Pro","M",42,"R",1,159,"2 padai,  2 kulnai",null,1]
[null,17,"Batai","Etonic","Stabilite","W",37.5,"R",1,39,null,null,1]
[null,18,"Batai","Hammer","Roque","M",42.5,"R",1,99,null,null,1]
[null,19,"Batai","Hammer","Roque","M",43,"R",1,99,null,null,1]
[null,20,"Batai","Hammer","Roque","M",43.5,"R",1,99,null,null,1]
[null,21,"Batai","Hammer","Vixen","W",38,"R",1,69,null,null,1]
[null,22,"Batai","Hammer","Vixen","W",39,"R",1,69,null,null,1]
[null,23,"Batai","KR Strikeforce","Gem","W",40,"L/R",1,69,null,null,1]
[null,24,"Batai","KR Strikeforce","O.P.P. Black","M",43.5,"L/R",1,39,null,null,1]
[null,25,"Batai","KR Strikeforce","O.P.P. Black","M",42,"L/R",1,39,null,null,1]
[null,26,"Batai","KR Strikeforce","O.P.P. Black","M",41.5,"L/R",1,39,null,null,1]
[null,27,"Batai","Linds","Classic Mens","M",41,"R",1,39,null,null,1]
[null,28,"Batai","Linds","Classic Mens","M",42,"R",2,39,null,null,2]
[null,29,"Batai","Pro Bowl","Freneza","M",41.5,"R",1,159,null,null,1]
[null,30,"Batai","Pro Bowl","Freneza","M",42,"R",2,159,null,null,2]
[null,31,"Batai","Pro Bowl","Freneza","M",42.5,"R",1,159,null,null,1]
[null,32,"Batai","Pro Bowl","Freneza","M",43,"R",1,159,null,null,1]
[null,33,"Batai","Pro Bowl","Supro","M",43.5,"L/R",1,59,null,null,1]

{"sheet":"Krepšiai","index":2,"n_rows":13,"n_cols":13,"rows_kept":13}
[]
[]
[]
[null,"Nr.","Prekė","Gamintojas","Pavadinimas","Dydis","Kiekis","Parduota","Likutis","Kaina eur.","Komentaras","Parduota","Likutis"]
[null,1,"Krepšys","Brunswick","Single bag","1 kam.",1,null,{"$f":"+G5-H5","v":1},12,null,null,{"$f":"+G5-L5","v":1}]
[null,2,"Krepšys","Ebonite","Single bag","1 kam.",4,null,4,11,null,null,{"$f":"+G6-L6","v":4}]
[null,3,"Krepšys","Ebonite","FastBreak 2 ball roller","2 kam.",1,null,1,89,null,null,1]
[null,4,"Krepšys","Global 900","Add a bag","1 kam.",1,null,1,12,null,null,1]
[null,5,"Krepšys","Master","Accessory ( su daiktų rinkiniu )","-",1,null,1,47,null,null,1]
[null,6,"Krepšys","Motiv","Shoe bag","-",1,null,1,10,"Krepšys batams",null,1]
[null,7,"Krepšys","Pro Bowl","Single bag","1 kam.",1,null,1,10,null,null,1]
[null,8,"Krepšys","Storm","Storm Tournament Tote Travel","3 kam.",3,null,3,69,null,null,3]
[null,9,"Krepšys","Track","Premium player back pack","-",1,null,1,49,"Žaidėjo kuprinė",null,1]

{"sheet":"Pirštinės","index":3,"n_rows":15,"n_cols":11,"rows_kept":15}
[]
[]
[]
[null,"Nr.","Prekė","Gamintojas","Pavadinimas","R/L","Dydis","Kiekis","Kaina eur.","Parduota","Likutis"]
[null,1,"Pirštinė","C300","Classic leather","R","L",1,25,null,{"$f":"+H5-J5","v":1}]
[null,2,"Pirštinė","Ebonite","React/R Palm pad  glove RH","L","M, L, XL",3,25,null,3]
[null,3,"Pirštinė","Ebonite","Ultra griper tour mode RH","R","S, M",2,20,null,2]
[null,4,"Pirštinė","Hammer","Tough glove","R","XL",1,18,null,1]
[null,5,"Pirštinė","Master","300 Pro series Max gripping power","R","S, XL",2,22,null,2]
[null,6,"Pirštinė","Master","Max grip pilka leather non slip","R","M",1,22,null,1]
[null,7,"Pirštinė","Pro Bowl","Leather plus","R","S, L, M, XL",6,14,null,6]
[null,8,"Pirštinė","Storm","Power Glove","L","XL",1,18,null,1]
[null,9,"Pirštinė","Storm","Power glove LH","L","XL",1,12,null,1]
[null,10,"Pirštinė","Storm","Wrist brace C-2","R","L, XL",4,49,null,4]
[null,11,"Pirštinė","Turbo","Wrist restrictor","R","M, L, XL",2,24,null,2]

{"sheet":"Kitos_Prekės","index":4,"n_rows":67,"n_cols":10,"rows_kept":67}
[]
[]
[null,"Nr.","Prekė","Gamintojas","Pavadinimas","Dydis","Kiekis","Kaina eur.","Parduota","Likutis"]
[null,1,"Apautai batams","Brunswick",null,36,1,14,null,{"$f":"+G4-I4","v":1}]
[null,2,"Apautai batams","Pro Bowl","Shoe cover",null,11,8,null,11]
[null,3,"Apautai batams","Robbys",null,null,3,11,null,3]
[null,4,"Apautas nykščiui","Pro Bowl","Nykščiui Thumb saver",null,3,6,null,3]
[null,5,"Apautas nykščiui","Robbys","Nykščiui Thumb sock",null,1,6,null,1]
[null,6,"Dezodorantas batams","Pro Bowl","Dezodorantas batams",null,5,6,null,5]
[null,7,"Gertuvė-kėglis",null,"Kėglis \"Happy Birthday\"",null,5,3,null,5]
[null,8,"Juostelė","Pro Bowl","Performance tape 40 vnt. Slow",null,42,10,null,42]
[null,9,"Juostelė","Pro Bowl","Protecting tape rul.","rul.",13,13,null,13]
[null,10,"Juostelė","Vise","Hada patch 1 blue 1\" 40 vnt.",null,2,16,null,2]
[null,11,"Juostelė","Vise","Hada patch 2 red 1\" 40 vnt.",null,2,16,null,2]
[null,12,"Juostelė","Vise","Hada patch 3 aqua 1\" 40 vnt.",null,2,16,null,2]
[null,13,"Juostelė","Vise","Hada patch 4 gray 1\" 40 vnt.",null,1,16,null,1]
[null,14,"Juostelė","Vise","Finger protecting tape 2\"","rul.",1,22,null,1]
[null,15,"Kamuoliukas","Hammer","Hand master ball",null,4,6,null,4]
[null,17,"Kėglis","No name","Spalvotas medinis",null,null,18,null,0]
[null,18,"Kempinėlė","Motiv","Paraloninė kempinėlė kamuoliui valyti 10 vnt.",null,3,7,null,3]
[null,19,"Kempinėlė rankoms","Pro Bowl","Grip ball",null,9,6,null,9]
[null,20,"Kempinėlė rankoms","Storm",null,null,6,7,null,6]
[null,21,"Kempinėlė rankoms","Ebonite","Ultra dry grip ball",null,1,6,null,1]
[null,22,"Kempinėlė rankoms","Pro Bowl","Grip Sack",null,9,6,null,9]
[null,23,"Klijai odai","Ebonite","Klijai odai Xtra skin",null,65,5,null,65]
[null,24,"Kulnas","Dexter","H-1",null,1,6,null,1]
[null,25,"Kulnas","Dexter","H-7",null,2,10,null,2]
[null,26,"Marškinėliai",null,"Įvairių gamintojų",null,15,20,null,15]
[null,27,"Milteliai rankoms","Ebonite","Ultra slide",null,8,5,null,8]
[null,28,"Milteliai rankoms","Master","Tack grip",null,10,5,null,10]
[null,29,"Milteliai rankoms","Strikeforce","Pure slide",null,2,5,null,2]
[null,30,"Padas","Brunswick","Slide pad 10",null,1,19,null,1]
[null,31,"Padas","Brunswick","Slide pad 8",null,1,14,null,1]
[null,32,"Padas","Dexter","S-10","Standart",7,20,null,7]
[null,33,"Padas","Dexter","S-10 ( su apvadu priekyje )","Standart",1,36,null,1]
[null,34,"Padas","Dexter","S-11","Standart",2,20,null,{"$f":"+G36-I36","v":2}]
[null,35,"Padas","Dexter","S-12","Standart/XL",3,20,null,3]
[null,36,"Padas","Pro Bowl","S-10",null,6,17,null,6]
[null,37,"Padas","No name","S-6",null,1,6,null,1]
[null,38,"Padas","No name","S-2",null,2,2,null,2]
[null,39,"Padas","No name","S-4",null,1,4,null,1]
[null,40,"Polirolis","Storm","X-tra shine","4 oz",1,6,null,1]
[null,41,"Polirolis","Ultimate","Quik kut 8","8  oz",1,12,null,1]
[null,42,"Rankovė","Motiv",null,null,5,11,null,5]
[null,43,"Rankšluostėlis","DV8","Rankšluostėlis",null,1,12,null,1]
[null,44,"Rankšluostėlis","Motiv","Rankšluostėlis",null,3,18,null,3]
[null,45,"Šepetėlis","Ebonite","Šepetėlis batams",null,1,6,null,1]
[null,46,"Servetėlės","Pro Bowl","Drėgnos servetėlės kamuoliui valyti",null,12,6,null,12]
[null,47,"Šluostė kamuoliui","Pro Bowl","Microfiber towel",null,3,10,null,3]
[null,48,"Šluostė kamuoliui","Pro Bowl","Leather",null,1,10,null,1]
[null,49,"Šluostė kamuoliui","Pro Bowl","Mikrofibrinis",null,1,10,null,1]
[null,50,"Šluostė kamuoliui","Pro Bowl","Shammy",null,3,10,null,3]
[null,51,"Šluostė kamuoliui","Pro Bowl","Shammy-leather",null,1,10,null,1]
[null,52,"Šluostė kamuoliui","Track","Šluostė",null,1,10,null,1]
[null,53,"Šluostė kamuoliui","No name","Šluostė",null,1,10,null,1]
[null,54,"Teipai","Vise","Įvairių spalvų 3/4\" 28 vnt.",null,18,16,null,18]
[null,55,"Teipai","Ebonite","1/2 B pak.-30 vnt. Stori",null,15,6,null,15]
[null,56,"Teipai","Ebonite","3/4 B pak.-30 vnt. Stori",null,3,6,null,3]
[null,57,"Teipai","Storm","3/4 B dėž.  - 30 vnt. Ploni",null,15,6,null,15]
[null,58,"Teipai","Ebonite","1 B rul. 20 vnt. stori",null,null,5,null,0]
[null,59,"Teipai","Storm","1 W rul. 20 vnt.",null,null,5,null,0]
[null,60,"Teipai","Ebonite","1/2 B rul. 20 vnt.",null,null,5,null,0]
[null,61,"Teipai","PowerHouse","3/4 B rul. 20 vnt. stori",null,null,5,null,0]
[null,62,"Teipai","Storm","3/4 W rul. 20 vnt.",null,null,5,null,0]
[null,63,"Teipai","Strikeforce","3/4 W rul. 20 vnt.",null,null,5,null,0]
[null,64,"Valiklis kamuoliui","Kegel","Revive","8 oz",27,10,null,27]
[null,65,"Valiklis kamuoliui","Strikforce","Pure energy","32 oz",2,32,null,2]

{"sheet":"Boulingams","index":5,"n_rows":19,"n_cols":8,"rows_kept":19}
[]
[null,"Nr.","Prekė","Gamintojas","Pavaidinimas","Svoris","Komentaras","Likutis"]
[null,1,"Kamuolys","Bowltech","House ball",5,"negręžtas",2]
[null,2,"Kamuolys","Bowltech","House ball",6,"negręžtas",2]
[null,3,"Kamuolys","Bowltech","House ball",7,"negręžtas",4]
[null,4,"Kamuolys","Bowltech","House Ball",11,"negręžtas",4]
[null,5,"Kamuolys","Bowltech","House Ball",13,"negręžtas",4]
[null,6,"Kamuolys","Bowltech","House Ball",14,"negręžtas",1]
[null,7,"Kamuolys","Dyno Thane","House Ball",15,"negręžtas",2]
[null,8,"Kamuolys","Legends Star","House Ball",15,"negręžtas",2]
[null,9,"Kamuolys","Storm","House Ball",15,"negręžtas",1]
[null,10,"Kamuolys","Bowltech","House Ball",15,"negręžtas",1]
[null,11,"Kamuolys","Bowltech","House ball",7,"užlietas, išgręžtas",1]
[null,12,"Kamuolys","Bowltech","House ball",6,null,1]
[null,13,"Kamuolys","Bowltech","House ball",8,null,1]
[null,14,"Kamuolys","Bowltech","House Ball",9,null,2]
[null,15,"Kamuolys","Bowltech","House Ball",11,null,6]
[null,16,"Kamuolys","Bowltech","House Ball",13,null,1]
[null,17,"Kamuolys","Bowltech","House Ball",15,null,8]